[Event "*** Titled Tuesday Blitz"]
[Site "Chess.com"]
[Date "2020.10.20"]
[Round "2"]
[White "Philosopherrr"]
[Black "brunomorado"]
[Result "1/2-1/2"]
[WhiteElo "2609"]
[BlackElo "2313"]
[TimeControl "180+1"]
[EndTime "10:16:30 PDT"]
[Termination "Game drawn by repetition"]

1. Nf3 {[%clk 0:03:00.9]} 1... Nf6 {[%clk 0:02:59.7]} 2. b3 {[%clk 0:02:59.2]}
2... d5 {[%clk 0:02:58.7]} 3. Bb2 {[%clk 0:02:59.6]} 3... g6 {[%clk 0:02:54.6]}
4. e3 {[%clk 0:02:56.7]} 4... Bg7 {[%clk 0:02:50.8]} 5. Be2 {[%clk 0:02:57.2]}
5... O-O {[%clk 0:02:50.2]} 6. O-O {[%clk 0:02:57.4]} 6... c5 {[%clk 0:02:49.6]}
7. d4 {[%clk 0:02:53.5]} 7... Ne4 {[%clk 0:02:48.9]} 8. Nbd2 {[%clk 0:02:52.7]}
8... Nc6 {[%clk 0:02:49.2]} 9. Rc1 {[%clk 0:02:31]} 9... Qc7 {[%clk 0:02:34.6]}
10. c4 {[%clk 0:02:27.8]} 10... e6 {[%clk 0:02:19.8]} 11. cxd5 {[%clk
0:02:27.3]} 11... exd5 {[%clk 0:02:20.7]} 12. Ne5 {[%clk 0:02:15]} 12... Nxe5
{[%clk 0:02:17.5]} 13. Nxe4 {[%clk 0:02:09.4]} 13... dxe4 {[%clk 0:01:58.8]} 14.
dxe5 {[%clk 0:02:07.2]} 14... Bxe5 {[%clk 0:01:58.5]} 15. Ba3 {[%clk 0:02:02.9]}
15... Bxh2+ {[%clk 0:01:45.7]} 16. Kh1 {[%clk 0:02:02.2]} 16... Bd6 {[%clk
0:01:44]} 17. b4 {[%clk 0:01:57.5]} 17... b6 {[%clk 0:01:42.2]} 18. bxc5 {[%clk
0:01:56.5]} 18... bxc5 {[%clk 0:01:34.3]} 19. Bxc5 {[%clk 0:01:52.6]} 19... Bxc5
{[%clk 0:01:32.4]} 20. Qd5 {[%clk 0:01:52.8]} 20... Be6 {[%clk 0:01:29.9]} 21.
Qxc5 {[%clk 0:01:53.2]} 21... Qxc5 {[%clk 0:01:30.1]} 22. Rxc5 {[%clk
0:01:54.1]} 22... Bxa2 {[%clk 0:01:30.6]} 23. Ra1 {[%clk 0:01:54.4]} 23... Be6
{[%clk 0:01:30.1]} 24. Ba6 {[%clk 0:01:52.2]} 24... Rfd8 {[%clk 0:01:27.3]} 25.
Bb7 {[%clk 0:01:49.1]} 25... Rab8 {[%clk 0:01:23.1]} 26. Bxe4 {[%clk 0:01:44.4]}
26... Rd2 {[%clk 0:01:22]} 27. f4 {[%clk 0:01:36.1]} 27... Rb3 {[%clk
0:01:19.6]} 28. f5 {[%clk 0:01:34.5]} 28... gxf5 {[%clk 0:01:19.3]} 29. Bxf5
{[%clk 0:01:34]} 29... Rxe3 {[%clk 0:01:18.8]} 30. Bxe6 {[%clk 0:01:33.8]} 30...
Rxe6 {[%clk 0:01:19.7]} 31. Rxa7 {[%clk 0:01:33.8]} 31... Rg6 {[%clk 0:01:13.8]}
32. Rf5 {[%clk 0:01:29.2]} 32... Rdxg2 {[%clk 0:01:01.6]} 33. Rfxf7 {[%clk
0:01:27.3]} 33... Rg1+ {[%clk 0:01:01]} 34. Kh2 {[%clk 0:01:27.7]} 34... R1g2+
{[%clk 0:00:59.3]} 35. Kh3 {[%clk 0:01:26]} 35... Rg1 {[%clk 0:00:50.6]} 36. Kh2
{[%clk 0:01:26]} 36... R1g2+ {[%clk 0:00:50.7]} 37. Kh1 {[%clk 0:01:26.3]} 37...
Rg1+ {[%clk 0:00:43.4]} 38. Kh2 {[%clk 0:01:24]} 1/2-1/2

[Event "*** Titled Tuesday Blitz"]
[Site "Chess.com"]
[Date "2020.10.20"]
[Round "2"]
[White "JonahWillow"]
[Black "kinga2008"]
[Result "1-0"]
[WhiteElo "2639"]
[BlackElo "2185"]
[TimeControl "180+1"]
[EndTime "10:16:31 PDT"]
[Termination "JonahWillow won by checkmate"]

1. e4 {[%clk 0:03:00.9]} 1... c5 {[%clk 0:02:59.5]} 2. Nf3 {[%clk 0:03:00.9]}
2... Nc6 {[%clk 0:02:50.2]} 3. d4 {[%clk 0:02:57]} 3... cxd4 {[%clk 0:02:42.5]}
4. Nxd4 {[%clk 0:02:57.9]} 4... e5 {[%clk 0:02:38.8]} 5. Nb5 {[%clk 0:02:57.6]}
5... a6 {[%clk 0:02:37.9]} 6. Nd6+ {[%clk 0:02:57.3]} 6... Bxd6 {[%clk
0:02:34.2]} 7. Qxd6 {[%clk 0:02:58.2]} 7... Qf6 {[%clk 0:02:26.4]} 8. Qd1 {[%clk
0:02:55]} 8... Qg6 {[%clk 0:02:21.6]} 9. Nc3 {[%clk 0:02:53.2]} 9... d5 {[%clk
0:02:20.1]} 10. Nxd5 {[%clk 0:02:52.3]} 10... Qxe4+ {[%clk 0:02:18.9]} 11. Be2
{[%clk 0:02:52.8]} 11... Nd4 {[%clk 0:02:19.2]} 12. Nc7+ {[%clk 0:02:49.9]}
12... Ke7 {[%clk 0:02:16.4]} 13. f3 {[%clk 0:02:49.9]} 13... Nxc2+ {[%clk
0:02:03.4]} 14. Kf2 {[%clk 0:02:47.4]} 14... Qd4+ {[%clk 0:02:02.8]} 15. Qxd4
{[%clk 0:02:44.9]} 15... exd4 {[%clk 0:02:03.7]} 16. Nxa8 {[%clk 0:02:33.5]}
16... Nxa1 {[%clk 0:01:56.8]} 17. Bd3 {[%clk 0:02:32.5]} 17... Nf6 {[%clk
0:01:44.2]} 18. Nb6 {[%clk 0:02:14.9]} 18... Be6 {[%clk 0:01:24.2]} 19. Bd2
{[%clk 0:02:03.8]} 19... Bxa2 {[%clk 0:01:09]} 20. Rxa1 {[%clk 0:02:02.8]} 20...
Be6 {[%clk 0:01:07.7]} 21. Bb4+ {[%clk 0:02:01.4]} 21... Ke8 {[%clk 0:01:05]}
22. Rc1 {[%clk 0:02:00]} 22... Bd7 {[%clk 0:01:00.1]} 23. Bc5 {[%clk 0:01:53.6]}
23... Bc6 {[%clk 0:00:40.6]} 24. Bxd4 {[%clk 0:01:53.7]} 24... Ke7 {[%clk
0:00:32.8]} 25. Re1+ {[%clk 0:01:45.8]} 25... Kd6 {[%clk 0:00:31.7]} 26. Nc4+
{[%clk 0:01:33.6]} 26... Kd5 {[%clk 0:00:29.2]} 27. Bc3 {[%clk 0:01:28.3]} 27...
Nd7 {[%clk 0:00:23.1]} 28. Re7 {[%clk 0:01:18.6]} 28... Nc5 {[%clk 0:00:20.5]}
29. Re5# {[%clk 0:01:18]} 1-0

[Event "*** Titled Tuesday Blitz"]
[Site "Chess.com"]
[Date "2020.10.20"]
[Round "2"]
[White "indfraeng"]
[Black "Korchmar_Vasiliy"]
[Result "1-0"]
[WhiteElo "2346"]
[BlackElo "2593"]
[TimeControl "180+1"]
[EndTime "10:16:33 PDT"]
[Termination "indfraeng won by resignation"]

1. d4 {[%clk 0:03:00.9]} 1... Nf6 {[%clk 0:02:58.7]} 2. c4 {[%clk 0:03:00.9]}
2... g6 {[%clk 0:02:59.1]} 3. g3 {[%clk 0:03:01.2]} 3... d5 {[%clk 0:02:58.8]}
4. cxd5 {[%clk 0:03:00.7]} 4... Nxd5 {[%clk 0:02:59.7]} 5. Bg2 {[%clk
0:03:01.2]} 5... Bg7 {[%clk 0:02:59.5]} 6. Nf3 {[%clk 0:03:01.8]} 6... O-O
{[%clk 0:02:59]} 7. O-O {[%clk 0:03:02.2]} 7... Nc6 {[%clk 0:02:54.1]} 8. Nc3
{[%clk 0:02:55.2]} 8... Nxc3 {[%clk 0:02:48.9]} 9. bxc3 {[%clk 0:02:53.9]} 9...
e5 {[%clk 0:02:49.4]} 10. d5 {[%clk 0:02:48.8]} 10... Na5 {[%clk 0:02:47]} 11.
e4 {[%clk 0:02:49.3]} 11... c6 {[%clk 0:02:26.7]} 12. Bg5 {[%clk 0:01:58.4]}
12... f6 {[%clk 0:02:13.7]} 13. Be3 {[%clk 0:01:58.6]} 13... cxd5 {[%clk
0:02:02.4]} 14. exd5 {[%clk 0:01:51]} 14... Nc4 {[%clk 0:02:02.3]} 15. Bc5
{[%clk 0:01:50.3]} 15... Nd6 {[%clk 0:02:00.9]} 16. Nd2 {[%clk 0:01:46.5]} 16...
Qc7 {[%clk 0:01:41]} 17. Ba3 {[%clk 0:01:35.1]} 17... Rd8 {[%clk 0:01:39.3]} 18.
Rc1 {[%clk 0:01:31.4]} 18... b5 {[%clk 0:01:38.1]} 19. Qb3 {[%clk 0:01:25.5]}
19... Kh8 {[%clk 0:01:34.4]} 20. c4 {[%clk 0:01:22.4]} 20... bxc4 {[%clk
0:01:32.8]} 21. Nxc4 {[%clk 0:01:23.3]} 21... Nxc4 {[%clk 0:01:27.6]} 22. Rxc4
{[%clk 0:01:21.3]} 22... Qb6 {[%clk 0:01:22.5]} 23. Rfc1 {[%clk 0:01:14.3]}
23... Qxb3 {[%clk 0:01:08.3]} 24. axb3 {[%clk 0:01:15.2]} 24... Bb7 {[%clk
0:01:08.9]} 25. Be7 {[%clk 0:01:06.5]} 25... Rd7 {[%clk 0:00:58.8]} 26. d6
{[%clk 0:01:03.3]} 26... Bxg2 {[%clk 0:00:59.7]} 27. Rc8+ {[%clk 0:01:03]} 27...
Bf8 {[%clk 0:00:55.8]} 28. Kxg2 {[%clk 0:00:55.8]} 28... Kg7 {[%clk 0:00:52.5]}
29. Rxa8 {[%clk 0:00:55.6]} 29... Kf7 {[%clk 0:00:52.6]} 30. Rxf8+ {[%clk
0:00:55.1]} 30... Ke6 {[%clk 0:00:53.2]} 31. Rxf6+ {[%clk 0:00:53]} 31... Kd5
{[%clk 0:00:53]} 32. Rc7 {[%clk 0:00:53.1]} 32... Rd8 {[%clk 0:00:51.8]} 33.
Bxd8 {[%clk 0:00:52.1]} 1-0

[Event "*** Titled Tuesday Blitz"]
[Site "Chess.com"]
[Date "2020.10.20"]
[Round "2"]
[White "PawnEatingZombie"]
[Black "Fischerev7"]
[Result "0-1"]
[WhiteElo "2161"]
[BlackElo "2409"]
[TimeControl "180+1"]
[EndTime "10:16:35 PDT"]
[Termination "Fischerev7 won by resignation"]

1. d4 {[%clk 0:03:00.9]} 1... Nf6 {[%clk 0:02:59.7]} 2. c4 {[%clk 0:03:01.2]}
2... e6 {[%clk 0:02:59]} 3. Nc3 {[%clk 0:03:01.8]} 3... Bb4 {[%clk 0:02:58.1]}
4. Qc2 {[%clk 0:03:02.3]} 4... c5 {[%clk 0:02:57.6]} 5. dxc5 {[%clk 0:03:01.1]}
5... Qc7 {[%clk 0:02:57.3]} 6. a3 {[%clk 0:02:49.4]} 6... Bxc3+ {[%clk
0:02:53.6]} 7. Qxc3 {[%clk 0:02:48.9]} 7... Qxc5 {[%clk 0:02:52.9]} 8. f3 {[%clk
0:02:37]} 8... d5 {[%clk 0:02:31.4]} 9. e3 {[%clk 0:02:29.7]} 9... O-O {[%clk
0:02:27.4]} 10. b4 {[%clk 0:02:15.3]} 10... Qc7 {[%clk 0:02:25]} 11. Bb2 {[%clk
0:02:12.9]} 11... a5 {[%clk 0:02:21.1]} 12. Bd3 {[%clk 0:02:04.3]} 12... dxc4
{[%clk 0:02:17.8]} 13. Qxc4 {[%clk 0:01:51]} 13... Qxc4 {[%clk 0:02:15.7]} 14.
Bxc4 {[%clk 0:01:51]} 14... axb4 {[%clk 0:02:15.8]} 15. axb4 {[%clk 0:01:50.7]}
15... Rxa1+ {[%clk 0:02:14.8]} 16. Bxa1 {[%clk 0:01:51.6]} 16... Bd7 {[%clk
0:02:11]} 17. Ne2 {[%clk 0:01:42.9]} 17... Rc8 {[%clk 0:02:08.6]} 18. Bd3 {[%clk
0:01:36]} 18... Nc6 {[%clk 0:02:06.3]} 19. Kf2 {[%clk 0:00:52.9]} 19... Nxb4
{[%clk 0:02:02.7]} 20. Bb1 {[%clk 0:00:53.5]} 20... b5 {[%clk 0:01:53.4]} 21.
Rd1 {[%clk 0:00:48.1]} 21... Be8 {[%clk 0:01:48.2]} 22. e4 {[%clk 0:00:36.6]}
22... Nd7 {[%clk 0:01:42.8]} 23. Nd4 {[%clk 0:00:32.9]} 23... Nb6 {[%clk
0:01:37.6]} 24. Ke2 {[%clk 0:00:21.4]} 24... Na4 {[%clk 0:01:32.5]} 25. Kd2
{[%clk 0:00:16.6]} 25... Rd8 {[%clk 0:01:24]} 26. Ke3 {[%clk 0:00:15.2]} 26...
e5 {[%clk 0:01:22.3]} 0-1

[Event "*** Titled Tuesday Blitz"]
[Site "Chess.com"]
[Date "2020.10.20"]
[Round "2"]
[White "CheckThis4"]
[Black "Beca95"]
[Result "0-1"]
[WhiteElo "2578"]
[BlackElo "2898"]
[TimeControl "180+1"]
[EndTime "10:16:37 PDT"]
[Termination "Beca95 won by resignation"]

1. d4 {[%clk 0:03:00.9]} 1... g6 {[%clk 0:03:00.5]} 2. e4 {[%clk 0:03:00.1]}
2... Bg7 {[%clk 0:03:00.8]} 3. Nc3 {[%clk 0:03:00.7]} 3... c6 {[%clk 0:03:01.1]}
4. Nf3 {[%clk 0:03:00]} 4... d6 {[%clk 0:03:01.1]} 5. Be3 {[%clk 0:02:59.5]}
5... Nd7 {[%clk 0:02:58.9]} 6. Qd2 {[%clk 0:02:57.3]} 6... b5 {[%clk 0:02:58.9]}
7. Bd3 {[%clk 0:02:56.9]} 7... a6 {[%clk 0:02:57.2]} 8. O-O {[%clk 0:02:53.3]}
8... Bb7 {[%clk 0:02:55]} 9. Ne2 {[%clk 0:02:49.1]} 9... c5 {[%clk 0:02:54.3]}
10. c3 {[%clk 0:02:49.1]} 10... Ngf6 {[%clk 0:02:48.6]} 11. Ng3 {[%clk
0:02:48.3]} 11... e5 {[%clk 0:02:46.4]} 12. h3 {[%clk 0:02:41.2]} 12... O-O
{[%clk 0:02:43.9]} 13. Rfe1 {[%clk 0:02:40.3]} 13... Re8 {[%clk 0:02:43.4]} 14.
Rad1 {[%clk 0:02:39.5]} 14... exd4 {[%clk 0:02:41.9]} 15. cxd4 {[%clk 0:02:38]}
15... c4 {[%clk 0:02:41.9]} 16. Bb1 {[%clk 0:02:33.9]} 16... Bxe4 {[%clk
0:02:40.1]} 17. Bxe4 {[%clk 0:02:16.7]} 17... Nxe4 {[%clk 0:02:41]} 18. Nxe4
{[%clk 0:02:13.4]} 18... Rxe4 {[%clk 0:02:41.9]} 19. Bg5 {[%clk 0:02:13.4]}
19... Qe8 {[%clk 0:02:23.6]} 20. Rxe4 {[%clk 0:01:58.7]} 20... Qxe4 {[%clk
0:02:24.5]} 21. Re1 {[%clk 0:01:59]} 21... Qd5 {[%clk 0:02:24.5]} 22. Re7 {[%clk
0:01:56.5]} 22... Nf8 {[%clk 0:02:21.8]} 23. Bh6 {[%clk 0:01:46.3]} 23... Ne6
{[%clk 0:02:16.1]} 24. Bxg7 {[%clk 0:01:41.8]} 24... Kxg7 {[%clk 0:02:17]} 25.
Qe3 {[%clk 0:01:33.4]} 25... h6 {[%clk 0:02:06.4]} 26. Rd7 {[%clk 0:01:29.9]}
26... Re8 {[%clk 0:01:45.7]} 27. Ne5 {[%clk 0:01:29.1]} 27... Nf8 {[%clk
0:01:35]} 28. Qg3 {[%clk 0:01:12.4]} 28... Rxe5 {[%clk 0:01:27.6]} 29. dxe5
{[%clk 0:00:56.9]} 29... Nxd7 {[%clk 0:01:26.3]} 30. exd6 {[%clk 0:00:54.6]}
30... Ne5 {[%clk 0:01:26.5]} 31. Qc3 {[%clk 0:00:53.5]} 31... f6 {[%clk
0:01:20.3]} 32. f4 {[%clk 0:00:48.1]} 32... Nf7 {[%clk 0:01:15.7]} 33. g4 {[%clk
0:00:43]} 33... Qxd6 {[%clk 0:01:15.4]} 34. f5 {[%clk 0:00:38.3]} 34... g5
{[%clk 0:01:14.2]} 35. h4 {[%clk 0:00:33.7]} 35... gxh4 {[%clk 0:01:13.7]} 36.
Qh3 {[%clk 0:00:32.2]} 36... Qg3+ {[%clk 0:01:12.4]} 0-1

[Event "*** Titled Tuesday Blitz"]
[Site "Chess.com"]
[Date "2020.10.20"]
[Round "2"]
[White "Pertinhez76"]
[Black "ajgreen"]
[Result "0-1"]
[WhiteElo "2139"]
[BlackElo "2402"]
[TimeControl "180+1"]
[EndTime "10:16:37 PDT"]
[Termination "ajgreen won by resignation"]

1. d4 {[%clk 0:02:59.8]} 1... f5 {[%clk 0:02:59.8]} 2. e4 {[%clk 0:02:55.6]}
2... fxe4 {[%clk 0:03:00.7]} 3. Nc3 {[%clk 0:02:55.2]} 3... Nf6 {[%clk
0:03:00.8]} 4. Bg5 {[%clk 0:02:54.4]} 4... Nc6 {[%clk 0:03:00.8]} 5. Qd2 {[%clk
0:02:47.2]} 5... d5 {[%clk 0:02:57.7]} 6. O-O-O {[%clk 0:02:42.8]} 6... Bf5
{[%clk 0:02:57.3]} 7. f3 {[%clk 0:02:41.6]} 7... Qd6 {[%clk 0:02:52.2]} 8. Nb5
{[%clk 0:02:30.6]} 8... Qd7 {[%clk 0:02:51.4]} 9. g4 {[%clk 0:02:28.3]} 9... Bg6
{[%clk 0:02:51.3]} 10. Bf4 {[%clk 0:02:27.4]} 10... Rc8 {[%clk 0:02:44.3]} 11.
Bh3 {[%clk 0:02:19.3]} 11... exf3 {[%clk 0:02:34.3]} 12. g5 {[%clk 0:02:05.4]}
12... Ng4 {[%clk 0:02:34.3]} 13. Nxf3 {[%clk 0:01:57.5]} 13... Bf5 {[%clk
0:02:24.7]} 14. Rde1 {[%clk 0:01:49]} 14... g6 {[%clk 0:02:18.7]} 15. Nh4 {[%clk
0:01:25.1]} 15... Bg7 {[%clk 0:02:11.5]} 16. Rhg1 {[%clk 0:01:21.2]} 16... Ne3
{[%clk 0:02:06.1]} 17. Nxf5 {[%clk 0:00:48.6]} 17... Nxf5 {[%clk 0:02:07]} 18.
Be5 {[%clk 0:00:33]} 18... Nxe5 {[%clk 0:01:58.3]} 19. Rxe5 {[%clk 0:00:31.8]}
19... Bxe5 {[%clk 0:01:56.9]} 20. Qe2 {[%clk 0:00:25.8]} 20... Bf4+ {[%clk
0:01:53.4]} 21. Kb1 {[%clk 0:00:25.5]} 21... O-O {[%clk 0:01:48]} 22. Nc3 {[%clk
0:00:23.6]} 22... e6 {[%clk 0:01:45.1]} 23. Nd1 {[%clk 0:00:22.1]} 23... c5
{[%clk 0:01:45]} 24. Nf2 {[%clk 0:00:20.1]} 24... Nxd4 {[%clk 0:01:43.4]} 25.
Qg4 {[%clk 0:00:19.2]} 25... Be3 {[%clk 0:01:40.7]} 26. c3 {[%clk 0:00:14.3]}
26... Bxf2 {[%clk 0:01:40.6]} 27. Rg2 {[%clk 0:00:12.7]} 27... Be3 {[%clk
0:01:32.9]} 28. cxd4 {[%clk 0:00:11.4]} 28... Rf1+ {[%clk 0:01:30.2]} 29. Kc2
{[%clk 0:00:09.7]} 29... cxd4+ {[%clk 0:01:30.6]} 0-1

[Event "*** Titled Tuesday Blitz"]
[Site "Chess.com"]
[Date "2020.10.20"]
[Round "2"]
[White "Andrii_Prydun"]
[Black "RamyresCoelho"]
[Result "1-0"]
[WhiteElo "2377"]
[BlackElo "2065"]
[TimeControl "180+1"]
[EndTime "10:16:39 PDT"]
[Termination "Andrii_Prydun won by resignation"]

1. d4 {[%clk 0:03:00.9]} 1... Nf6 {[%clk 0:02:59.7]} 2. Bf4 {[%clk 0:02:57.4]}
2... g6 {[%clk 0:02:59.1]} 3. Qc1 {[%clk 0:02:55.6]} 3... Bg7 {[%clk 0:03:00]}
4. Bh6 {[%clk 0:02:55.2]} 4... O-O {[%clk 0:02:59.2]} 5. Bxg7 {[%clk 0:02:54.9]}
5... Kxg7 {[%clk 0:03:00.1]} 6. Nc3 {[%clk 0:02:52.4]} 6... d5 {[%clk
0:02:55.3]} 7. e3 {[%clk 0:02:29.2]} 7... Nc6 {[%clk 0:02:49.2]} 8. Nf3 {[%clk
0:02:27.8]} 8... Re8 {[%clk 0:02:47.6]} 9. Bb5 {[%clk 0:02:26.8]} 9... a6 {[%clk
0:02:43.7]} 10. Bxc6 {[%clk 0:02:26.3]} 10... bxc6 {[%clk 0:02:44.6]} 11. Na4
{[%clk 0:02:19.3]} 11... Nd7 {[%clk 0:02:40.7]} 12. c4 {[%clk 0:02:15.7]} 12...
Bb7 {[%clk 0:02:28.4]} 13. O-O {[%clk 0:02:13.4]} 13... e5 {[%clk 0:02:21.7]}
14. dxe5 {[%clk 0:02:12.5]} 14... Nxe5 {[%clk 0:02:20.2]} 15. Nxe5 {[%clk
0:02:07.1]} 15... Rxe5 {[%clk 0:02:21.1]} 16. Nc5 {[%clk 0:02:06]} 16... Bc8
{[%clk 0:02:12.7]} 17. Qc3 {[%clk 0:01:49.7]} 17... f6 {[%clk 0:01:54.6]} 18.
Nd3 {[%clk 0:01:44.5]} 18... Rh5 {[%clk 0:01:46]} 19. Nf4 {[%clk 0:01:43.1]}
19... Rh6 {[%clk 0:01:41.4]} 20. Rad1 {[%clk 0:01:39.5]} 20... g5 {[%clk
0:01:31.2]} 21. Ne2 {[%clk 0:01:36]} 21... Qd6 {[%clk 0:01:25.7]} 22. Ng3 {[%clk
0:01:35.5]} 22... Be6 {[%clk 0:01:15.7]} 23. f4 {[%clk 0:01:28.8]} 23... gxf4
{[%clk 0:01:09.7]} 24. Rxf4 {[%clk 0:01:29.7]} 24... Qe5 {[%clk 0:01:01.2]} 25.
cxd5 {[%clk 0:01:11.5]} 25... Bxd5 {[%clk 0:00:54.1]} 26. Nf5+ {[%clk
0:01:09.6]} 26... Kg6 {[%clk 0:00:46.1]} 27. Nxh6 {[%clk 0:01:08.7]} 27... Kxh6
{[%clk 0:00:44.6]} 28. Rxf6+ {[%clk 0:01:07.5]} 28... Qxf6 {[%clk 0:00:37.2]}
29. Qxf6+ {[%clk 0:01:06]} 29... Kh5 {[%clk 0:00:36.9]} 30. Rd4 {[%clk
0:01:05.1]} 1-0

[Event "*** Titled Tuesday Blitz"]
[Site "Chess.com"]
[Date "2020.10.20"]
[Round "2"]
[White "scandalgod"]
[Black "ChessArchitect64"]
[Result "1-0"]
[WhiteElo "2375"]
[BlackElo "2035"]
[TimeControl "180+1"]
[EndTime "10:16:40 PDT"]
[Termination "scandalgod won by resignation"]

1. d4 {[%clk 0:03:00.9]} 1... d5 {[%clk 0:02:59]} 2. c4 {[%clk 0:03:00.8]} 2...
c6 {[%clk 0:02:57.9]} 3. cxd5 {[%clk 0:02:59.7]} 3... cxd5 {[%clk 0:02:57.3]} 4.
Bg5 {[%clk 0:02:56.9]} 4... h6 {[%clk 0:02:47.8]} 5. Bh4 {[%clk 0:02:52.5]} 5...
Qb6 {[%clk 0:02:43.3]} 6. Qd2 {[%clk 0:02:35.7]} 6... Nc6 {[%clk 0:02:42.7]} 7.
Nc3 {[%clk 0:02:32.1]} 7... Qxd4 {[%clk 0:02:34.8]} 8. Qxd4 {[%clk 0:02:22.2]}
8... Nxd4 {[%clk 0:02:34.6]} 9. O-O-O {[%clk 0:02:22.5]} 9... Ne6 {[%clk
0:02:21.8]} 10. e4 {[%clk 0:02:01]} 10... d4 {[%clk 0:01:57.4]} 11. Bb5+ {[%clk
0:01:55.3]} 11... Bd7 {[%clk 0:01:57.2]} 12. Bxd7+ {[%clk 0:01:53.8]} 12... Kxd7
{[%clk 0:01:57.2]} 13. Nf3 {[%clk 0:01:52.7]} 13... g5 {[%clk 0:01:37.8]} 14.
Bg3 {[%clk 0:01:51.6]} 14... Bg7 {[%clk 0:01:37.7]} 15. Nb5 {[%clk 0:01:40.8]}
15... a6 {[%clk 0:01:21.8]} 16. Nbxd4 {[%clk 0:01:39.9]} 16... Nxd4 {[%clk
0:01:21.4]} 17. Nxd4 {[%clk 0:01:35.6]} 17... Bxd4 {[%clk 0:01:21]} 18. Rxd4+
{[%clk 0:01:34.8]} 18... Ke8 {[%clk 0:01:21.5]} 19. Rhd1 {[%clk 0:01:30.4]}
19... b5 {[%clk 0:00:37.7]} 20. Bc7 {[%clk 0:01:22.2]} 20... e6 {[%clk
0:00:20.7]} 21. Rd8+ {[%clk 0:01:13.1]} 21... Rxd8 {[%clk 0:00:20.1]} 22. Rxd8+
{[%clk 0:01:14]} 22... Ke7 {[%clk 0:00:20.3]} 23. Ra8 {[%clk 0:01:11.4]} 23...
Kd7 {[%clk 0:00:20.3]} 24. Be5 {[%clk 0:01:07.5]} 24... f6 {[%clk 0:00:20.3]}
25. Bxf6 {[%clk 0:01:06.4]} 1-0

[Event "*** Titled Tuesday Blitz"]
[Site "Chess.com"]
[Date "2020.10.20"]
[Round "2"]
[White "SamuelGhimpu2003"]
[Black "crescentmoon2411"]
[Result "0-1"]
[WhiteElo "2575"]
[BlackElo "2887"]
[TimeControl "180+1"]
[EndTime "10:16:41 PDT"]
[Termination "crescentmoon2411 won by resignation"]

1. d4 {[%clk 0:03:00.9]} 1... Nf6 {[%clk 0:02:58.9]} 2. c4 {[%clk 0:03:00.7]}
2... c5 {[%clk 0:02:57.3]} 3. d5 {[%clk 0:03:00.3]} 3... e6 {[%clk 0:02:57.4]}
4. Nc3 {[%clk 0:02:59.1]} 4... exd5 {[%clk 0:02:56.9]} 5. cxd5 {[%clk 0:03:00]}
5... d6 {[%clk 0:02:56.6]} 6. e4 {[%clk 0:03:00.6]} 6... g6 {[%clk 0:02:56.4]}
7. f4 {[%clk 0:03:01.2]} 7... Bg7 {[%clk 0:02:56.7]} 8. Bb5+ {[%clk 0:03:01.5]}
8... Nfd7 {[%clk 0:02:54.8]} 9. a4 {[%clk 0:03:02]} 9... Qh4+ {[%clk 0:02:51.8]}
10. g3 {[%clk 0:03:01.9]} 10... Qe7 {[%clk 0:02:49.5]} 11. Nf3 {[%clk
0:03:02.5]} 11... O-O {[%clk 0:02:49.6]} 12. O-O {[%clk 0:03:02.4]} 12... Na6
{[%clk 0:02:13.2]} 13. Re1 {[%clk 0:03:02.3]} 13... Nb4 {[%clk 0:02:11.2]} 14.
Kg2 {[%clk 0:02:48.3]} 14... a6 {[%clk 0:02:09.3]} 15. Bf1 {[%clk 0:02:44.9]}
15... Rd8 {[%clk 0:01:59.5]} 16. Bd2 {[%clk 0:02:41.1]} 16... Nf6 {[%clk
0:01:58.2]} 17. h3 {[%clk 0:02:23.3]} 17... Rb8 {[%clk 0:01:57.1]} 18. Kh2
{[%clk 0:02:09.4]} 18... h6 {[%clk 0:01:43.9]} 19. Qb3 {[%clk 0:01:43.6]} 19...
b5 {[%clk 0:01:19.5]} 20. axb5 {[%clk 0:01:44.5]} 20... axb5 {[%clk 0:01:20.4]}
21. e5 {[%clk 0:01:35.9]} 21... dxe5 {[%clk 0:01:16.5]} 22. Nxe5 {[%clk
0:01:36.8]} 22... Qb7 {[%clk 0:00:53.3]} 23. Bxb5 {[%clk 0:01:17.8]} 23... Nbxd5
{[%clk 0:00:50.3]} 24. Nc6 {[%clk 0:01:11.5]} 24... Qxc6 {[%clk 0:00:48.4]} 25.
Bxc6 {[%clk 0:01:02.2]} 25... Rxb3 {[%clk 0:00:47.4]} 26. Nxd5 {[%clk
0:00:57.7]} 26... Nxd5 {[%clk 0:00:48.3]} 27. Ba5 {[%clk 0:00:58]} 27... Rxb2+
{[%clk 0:00:47.1]} 28. Kh1 {[%clk 0:00:57.9]} 28... Nb6 {[%clk 0:00:41.6]} 29.
Bxb6 {[%clk 0:00:43.2]} 0-1

[Event "*** Titled Tuesday Blitz"]
[Site "Chess.com"]
[Date "2020.10.20"]
[Round "2"]
[White "Stalri"]
[Black "gmpeter008"]
[Result "0-1"]
[WhiteElo "2144"]
[BlackElo "2405"]
[TimeControl "180+1"]
[EndTime "10:16:44 PDT"]
[Termination "gmpeter008 won by resignation"]

1. d4 {[%clk 0:03:00.9]} 1... Nf6 {[%clk 0:02:59.2]} 2. c4 {[%clk 0:03:00.2]}
2... e6 {[%clk 0:02:58.9]} 3. Nf3 {[%clk 0:02:58]} 3... Bb4+ {[%clk 0:02:58.8]}
4. Nbd2 {[%clk 0:02:55.6]} 4... d5 {[%clk 0:02:58.1]} 5. e3 {[%clk 0:02:53.4]}
5... O-O {[%clk 0:02:57.7]} 6. a3 {[%clk 0:02:51.5]} 6... Be7 {[%clk 0:02:57.2]}
7. b4 {[%clk 0:02:50.7]} 7... a5 {[%clk 0:02:56.5]} 8. Rb1 {[%clk 0:02:48.3]}
8... axb4 {[%clk 0:02:55.3]} 9. axb4 {[%clk 0:02:46.8]} 9... dxc4 {[%clk
0:02:55.6]} 10. Bxc4 {[%clk 0:02:45.9]} 10... Nd5 {[%clk 0:02:53.1]} 11. Bxd5
{[%clk 0:02:28.6]} 11... exd5 {[%clk 0:02:51.7]} 12. O-O {[%clk 0:02:28.2]}
12... Bf5 {[%clk 0:02:48.6]} 13. Rb3 {[%clk 0:02:24.6]} 13... Nd7 {[%clk
0:02:48.7]} 14. Bb2 {[%clk 0:02:21.6]} 14... c6 {[%clk 0:02:45.2]} 15. Ne5
{[%clk 0:02:21.4]} 15... Nxe5 {[%clk 0:02:43.5]} 16. dxe5 {[%clk 0:02:21.4]}
16... Ra2 {[%clk 0:02:37.1]} 17. Nb1 {[%clk 0:02:16.3]} 17... Ra4 {[%clk
0:02:22.8]} 18. Qd4 {[%clk 0:02:09.2]} 18... Bc2 {[%clk 0:02:10.7]} 19. Rc3
{[%clk 0:01:00.3]} 19... Rxb4 {[%clk 0:02:09.4]} 20. Qd2 {[%clk 0:00:59.4]}
20... Bg6 {[%clk 0:02:02.1]} 21. Na3 {[%clk 0:00:55.1]} 21... Qb6 {[%clk
0:02:01.2]} 22. Ba1 {[%clk 0:00:52.1]} 22... Ra8 {[%clk 0:02:00.1]} 23. Nc2
{[%clk 0:00:49.8]} 23... Rb1 {[%clk 0:01:55.4]} 24. e4 {[%clk 0:00:32.2]} 24...
Bxe4 {[%clk 0:01:52.5]} 25. e6 {[%clk 0:00:22.1]} 25... Bxc2 {[%clk 0:01:44.3]}
26. exf7+ {[%clk 0:00:20]} 26... Kf8 {[%clk 0:01:43]} 27. Qxc2 {[%clk
0:00:03.5]} 27... Rxf1+ {[%clk 0:01:41.5]} 28. Kxf1 {[%clk 0:00:04.4]} 28...
Rxa1+ {[%clk 0:01:41]} 29. Ke2 {[%clk 0:00:05.3]} 29... Qa6+ {[%clk 0:01:38.2]}
30. Kf3 {[%clk 0:00:05.2]} 30... Ra3 {[%clk 0:01:37.7]} 31. Kg4 {[%clk
0:00:04.3]} 31... Rxc3 {[%clk 0:01:37.1]} 32. Qxc3 {[%clk 0:00:05.2]} 32... Qe2+
{[%clk 0:01:37.2]} 33. Kh3 {[%clk 0:00:04.9]} 33... Qh5+ {[%clk 0:01:36.7]} 34.
Kg3 {[%clk 0:00:05.3]} 34... Bd6+ {[%clk 0:01:36.8]} 35. f4 {[%clk 0:00:05.3]}
35... Qg5+ {[%clk 0:01:37.1]} 36. Kf3 {[%clk 0:00:05.1]} 36... Qxf4+ {[%clk
0:01:37.4]} 37. Ke2 {[%clk 0:00:05.6]} 37... Qe5+ {[%clk 0:01:37.9]} 38. Qxe5
{[%clk 0:00:05.3]} 38... Bxe5 {[%clk 0:01:38.8]} 0-1